fUSD/lending_fUSD_20240602
["ID","MTS","AMOUNT","RATE_DAILY","PERIOD"]
[328417212,1717371053534,-638.36,0.00031316,4]
[328417213,1717371053543,-820.06,0.00031316,4]
[328417214,1717371053553,-520.32,0.00031316,4]
[328417215,1717371053562,-1014.06,0.00031316,4]
[328417216,1717371053571,-500.0,0.00031316,4]
[328417217,1717371053580,-500.0,0.00031316,4]
[328417218,1717371053594,-567.86,0.00031316,4]
[328417219,1717371053603,-500.0,0.00031316,4]
[328417220,1717371053612,-592.44,0.00031316,4]
[328417221,1717371053621,-500.0,0.00031316,4]
[328417222,1717371053630,-500.0,0.00031316,4]
[328417223,1717371053640,-516.74,0.00031316,4]
[328417224,1717371053649,-500.0,0.00031316,4]
[328417225,1717371053660,-720.42,0.00031316,4]
[328417226,1717371053672,-500.0,0.00031316,4]
[328417227,1717371053682,-675.63,0.00031316,4]
[328417228,1717371053693,-1147.72,0.00031316,4]
[328417229,1717371053705,-523.0,0.00031316,4]
[328417230,1717371053716,-500.0,0.00031316,4]
[328417231,1717371053726,-500.0,0.00031316,4]
[328417232,1717371053735,-715.6,0.00031316,4]
[328417233,1717371053744,-653.66,0.00031316,4]
[328417234,1717371053754,-871.38,0.00031316,4]
[328417235,1717371053763,-554.83,0.00031316,4]
[328417236,1717371053772,-684.32,0.00031316,4]
[328417237,1717371053782,-500.0,0.00031316,4]
[328417238,1717371053791,-654.04,0.00031316,4]
[328417239,1717371053801,-500.0,0.00031316,4]
[328417240,1717371053810,-697.57,0.00031316,4]
[328417241,1717371053819,-500.0,0.00031316,4]
[328417242,1717371053829,-500.0,0.00031316,4]
[328417243,1717371053839,-500.0,0.00031316,4]
[328417244,1717371053848,-789.05,0.00031316,4]
[328417245,1717371053858,-760.07,0.00031316,4]
[328417246,1717371053870,-500.0,0.00031316,4]
[328417247,1717371053879,-1212.31,0.00031316,4]
[328417248,1717371053890,-772.24,0.00031316,4]
[328417249,1717371053899,-170.85,0.00031316,4]
[328417250,1717371053910,-500.0,0.00031316,4]
[328417251,1717371053920,-903.33,0.00031316,4]
[328417252,1717371053929,-1037.02,0.00031316,4]
[328417253,1717371053938,-904.38,0.00031316,4]
[328417254,1717371053947,-150.0,0.0003132,2]
[328417255,1717371053956,-155.0,0.00031328,2]
[328417256,1717371053966,-19633.96026482,0.00031329,15]
[328417257,1717371053975,-5881.30390149,0.00031329,15]
[328417258,1717371053985,-1924.56770598,0.0003133,2]
[328417259,1717371053994,-2813.03132929,0.00031331,4]
[328417260,1717371054004,-187.41812084,0.00031331,4]
[328417261,1717371054013,-162.77963709,0.00031331,4]
[328417262,1717371054023,-363.88203839,0.00031331,4]
[328417263,1717371054033,-155.33547321,0.00031331,2]
[328417264,1717371054043,-189.05999598,0.00031331,4]
[328417265,1717371054052,-186.23625891,0.00031331,4]
[328417266,1717371054061,-293.14644748,0.00031331,4]
[328417267,1717371054070,-224.27254649,0.00031331,4]
[328417268,1717371054079,-205.13280041,0.00031331,4]
[328417269,1717371054088,-155.0,0.00031331,2]
[328417270,1717371054098,-205.48816265,0.00031332,4]
[328417271,1717371054107,-528.07367898,0.00031332,4]
[328417272,1717371054116,-500.0,0.00031332,2]
[328417273,1717371054125,-151.0,0.00031332,7]
[328417274,1717371054135,-156.62124,0.00031332,7]
[328417275,1717371054144,-151.0,0.00031332,7]
[328417276,1717371054154,-1044.317613,0.00031332,7]
[328417277,1717371054163,-1044.317613,0.00031332,7]
[328417278,1717371054172,-500.0,0.00031332,4]
[328417279,1717371054182,-500.0,0.00031332,4]
[328417280,1717371054191,-1001.15,0.00031332,4]
[328417281,1717371054200,-389.242611,0.00031332,7]
[328417282,1717371054209,-389.242611,0.00031332,7]
[328417283,1717371054219,-531.24,0.00031332,4]
[328417284,1717371054228,-500.0,0.00031332,4]
[328417285,1717371054237,-413.159818,0.00031332,7]
[328417286,1717371054246,-413.159818,0.00031332,7]
[328417287,1717371054255,-2925.21,0.00031332,4]
[328417288,1717371054264,-1385.52,0.00031332,4]
[328417289,1717371054273,-5956.43,0.00031332,4]
[328417290,1717371054282,-13746.73,0.00031332,4]
[328417291,1717371054291,-151.0,0.00031332,7]
[328417292,1717371054300,-151.0,0.00031332,7]
[328417293,1717371054309,-204.14903,0.00031332,7]
[328417294,1717371054319,-307.794907,0.00031332,7]
[328417295,1717371054328,-307.794907,0.00031332,7]
[328417296,1717371054337,-692.01,0.00031332,4]
[328417297,1717371054347,-221.380324,0.00031332,7]
[328417298,1717371054356,-221.380324,0.00031332,7]
[328417299,1717371054365,-2419.36,0.00031332,4]
[328417300,1717371054375,-1193.61,0.00031332,4]
[328417301,1717371054384,-152.531254,0.00031332,7]
[328417302,1717371054394,-152.531254,0.00031332,7]
[328417303,1717371054403,-12780.6,0.00031332,4]
[328417304,1717371054412,-737.12,0.00031332,4]
[328417305,1717371054421,-151.0,0.00031332,7]
[328417306,1717371054431,-1174.470906,0.00031332,7]
[328417307,1717371054440,-1174.470906,0.00031332,7]
[328417308,1717371054449,-500.0,0.00031332,4]
[328417309,1717371054458,-500.0,0.00031332,4]
[328417310,1717371054467,-500.0,0.00031332,4]
[328417311,1717371054477,-500.0,0.00031333,4]
[328417312,1717371054486,-500.0,0.00031333,4]
[328417313,1717371054496,-500.0,0.00031333,4]
[328417314,1717371054505,-500.0,0.00031333,4]
[328417315,1717371054515,-500.0,0.00031333,4]
[328417316,1717371054526,-500.0,0.00031333,4]
[328417317,1717371054536,-500.0,0.00031333,4]
[328417318,1717371054546,-502.11359744,0.00031333,4]
[328417319,1717371054555,-500.0,0.00031333,4]
[328417320,1717371054564,-500.0,0.00031333,4]
[328417321,1717371054574,-500.0,0.00031333,4]
[328417322,1717371054583,-500.0,0.00031333,4]
[328417323,1717371054596,-500.0,0.00031333,4]
[328417324,1717371054606,-638.66760387,0.00031333,4]
[328417325,1717371054615,-500.0,0.00031333,4]
[328417326,1717371054624,-511.63101993,0.00031333,4]
[328417327,1717371054634,-519.44805546,0.00031333,4]
[328417328,1717371054644,-500.0,0.00031333,4]
[328417329,1717371054654,-500.0,0.00031333,4]
[328417330,1717371054663,-535.14346412,0.00031333,4]
[328417331,1717371054675,-431.99996034,0.00031333,4]
[328417332,1717371054685,-500.0,0.00031333,4]
[328417333,1717371054694,-500.0,0.00031333,4]
[328417334,1717371054703,-500.0,0.00031333,4]
[328417335,1717371054713,-500.0,0.00031333,4]
[328417336,1717371054722,-500.0,0.00031333,4]
[328417337,1717371054731,-250.94479648,0.00031333,4]
[328417338,1717371054740,-500.0,0.00031333,4]
[328417339,1717371054750,-506.48284234,0.00031333,4]
[328417340,1717371054759,-500.0,0.00031333,4]
[328417341,1717371054769,-499.77834066,0.00031333,4]
[328417342,1717371054778,-500.0,0.00031333,4]
[328417343,1717371054787,-500.0,0.00031333,4]
[328417344,1717371054796,-521.34513623,0.00031333,4]
[328417345,1717371054805,-500.0,0.00031333,2]
[328417346,1717371054814,-500.0,0.00031333,4]
[328417347,1717371054824,-185.06732376,0.00031333,4]
[328417348,1717371054833,-500.0,0.00031333,4]
[328417349,1717371054842,-539.66545697,0.00031333,4]
[328417350,1717371054851,-500.0,0.00031333,4]
[328417351,1717371054860,-500.0,0.00031333,4]
[328417352,1717371054869,-508.3473093,0.00031333,4]
[328417353,1717371054879,-503.23106636,0.00031333,4]
[328417354,1717371054888,-500.0,0.00031333,4]
[328417355,1717371054897,-500.64624265,0.00031333,4]
[328417356,1717371054907,-500.0,0.00031333,4]
[328417357,1717371054916,-508.11171086,0.00031333,4]
[328417358,1717371054925,-503.85872094,0.00031333,4]
[328417359,1717371054934,-609.07161411,0.00031333,4]
[328417360,1717371054943,-506.77794426,0.00031333,4]
[328417361,1717371054953,-500.0,0.00031333,4]
[328417362,1717371054962,-515.26551204,0.00031333,4]
[328417363,1717371054971,-500.0,0.00031333,4]
[328417364,1717371054981,-511.85123165,0.00031333,4]
[328417365,1717371054990,-500.0,0.00031333,4]
[328417366,1717371055000,-500.0,0.00031333,4]
[328417367,1717371055010,-500.0,0.00031333,4]
[328417368,1717371055019,-500.0,0.00031333,4]
[328417369,1717371055029,-500.0,0.00031333,4]
[328417370,1717371055038,-465.0,0.00031333,4]
[328417371,1717371055048,-500.0,0.00031333,4]
[328417372,1717371055057,-500.0,0.00031333,4]
[328417373,1717371055067,-500.0,0.00031333,4]
[328417374,1717371055077,-513.04259153,0.00031333,4]
[328417375,1717371055086,-500.0,0.00031333,4]
[328417376,1717371055095,-500.0,0.00031333,4]
[328417377,1717371055105,-500.0,0.00031333,4]
[328417378,1717371055114,-500.0,0.00031333,4]
[328417379,1717371055124,-500.0,0.00031333,4]
[328417380,1717371055133,-500.0,0.00031333,4]
[328417381,1717371055142,-500.0,0.00031333,4]
[328417382,1717371055152,-500.0,0.00031333,4]
[328417383,1717371055161,-500.0,0.00031333,4]
[328417384,1717371055171,-504.51884482,0.00031333,4]
[328417385,1717371055180,-502.11050626,0.00031333,4]
[328417386,1717371055307,-169.12447267,0.00031333,4]
[328417387,1717371055317,-500.0,0.00031333,4]
[328417388,1717371055326,-500.0,0.00031333,4]
[328417389,1717371055335,-571.17949539,0.00031333,4]
[328417390,1717371055344,-500.0,0.00031333,4]
[328417391,1717371055353,-500.0,0.00031333,4]
[328417392,1717371055362,-976.87,0.00031333,4]
[328417393,1717371055372,-500.0,0.00031333,4]
[328417394,1717371055381,-241.75862269,0.00031333,4]
[328417395,1717371055390,-510.69910494,0.00031333,4]
[328417396,1717371055399,-985.6,0.00031333,4]
[328417397,1717371055408,-500.0,0.00031333,4]
[328417398,1717371055417,-504.75659229,0.00031333,4]
[328417399,1717371055426,-500.0,0.00031333,4]
[328417400,1717371055435,-500.0,0.00031333,4]
[328417401,1717371055445,-573.23,0.00031333,4]
[328417402,1717371055454,-250.0,0.00031333,4]
[328417403,1717371055464,-500.0,0.00031333,4]
[328417404,1717371055473,-500.0,0.00031333,4]
[328417405,1717371055483,-500.0,0.00031333,4]
[328417406,1717371055492,-515.99462654,0.00031333,4]
[328417407,1717371055501,-500.0,0.00031333,2]
[328417408,1717371055510,-509.32626326,0.00031333,4]
[328417409,1717371055519,-516.16,0.00031333,4]
[328417410,1717371055528,-500.0,0.00031333,4]
[328417411,1717371055538,-452.45387049,0.00031333,2]
[328417412,1717371055547,-500.0,0.00031333,4]
[328417413,1717371055556,-503.6546385,0.00031333,4]
[328417414,1717371055566,-504.74812011,0.00031333,4]
[328417415,1717371055575,-501.76,0.00031333,4]
[328417416,1717371055584,-518.61670895,0.00031333,4]
[328417417,1717371055596,-500.0,0.00031333,4]
[328417418,1717371055606,-508.2944955,0.00031333,4]
[328417419,1717371055615,-1000.0,0.00031333,2]
[328417420,1717371055624,-500.0,0.00031333,4]
[328417421,1717371055633,-500.0,0.00031333,4]
[328417422,1717371055643,-535.18055638,0.00031333,4]
[328417423,1717371055652,-585.1,0.00031333,4]
[328417424,1717371055662,-500.0,0.00031333,4]
[328417425,1717371055671,-500.0,0.00031333,4]
[328417426,1717371055681,-500.0,0.00031333,4]
[328417427,1717371055692,-500.0,0.00031333,4]
[328417428,1717371055701,-419.91751277,0.00031333,4]
[328417429,1717371055710,-500.0,0.00031333,4]
[328417430,1717371055718,-366.11637755,0.00031333,4]
[328417431,1717371055727,-500.0,0.00031333,4]
[328417432,1717371055735,-352.48638273,0.00031333,4]
[328417433,1717371055744,-500.0,0.00031333,4]
[328417434,1717371055753,-500.0,0.00031333,4]
[328417435,1717371055762,-500.0,0.00031333,4]
[328417436,1717371055771,-506.67530395,0.00031333,4]
[328417437,1717371055780,-500.0,0.00031333,4]
[328417438,1717371055789,-500.0,0.00031333,4]
[328417439,1717371055798,-311.09016401,0.00031333,4]
[328417440,1717371055807,-304.65658096,0.00031333,4]
[328417441,1717371055816,-361.45113057,0.00031333,4]
[328417442,1717371055825,-524.3106122,0.00031333,4]
[328417443,1717371055834,-500.0,0.00031333,4]
[328417444,1717371055843,-518.35618336,0.00031333,4]
[328417445,1717371055852,-500.0,0.00031333,4]
[328417446,1717371055861,-500.0,0.00031333,4]
[328417447,1717371055871,-509.20035584,0.00031333,4]
[328417448,1717371055880,-500.0,0.00031333,4]
[328417449,1717371055889,-500.0,0.00031333,4]
[328417450,1717371055898,-500.0,0.00031333,4]
[328417451,1717371055907,-500.0,0.00031333,4]
[328417452,1717371055917,-351.78337034,0.00031333,4]
[328417453,1717371055926,-500.0,0.00031333,4]
[328417454,1717371055935,-500.0,0.00031333,4]
[328417455,1717371055944,-500.0,0.00031333,4]
[328417456,1717371055954,-500.0,0.00031333,4]
[328417457,1717371055963,-500.0,0.00031333,4]
[328417458,1717371055972,-500.0,0.00031333,4]
[328417459,1717371055982,-511.21704351,0.00031333,4]
[328417460,1717371055991,-500.0,0.00031333,4]
[328417461,1717371056000,-500.0,0.00031333,4]
[328417462,1717371056010,-500.0,0.00031333,4]
[328417463,1717371056019,-500.0,0.00031333,4]
[328417464,1717371056028,-500.0,0.00031333,4]
[328417465,1717371056037,-500.0,0.00031333,4]
[328417466,1717371056046,-500.0,0.00031333,4]
[328417467,1717371056057,-500.0,0.00031333,4]
[328417468,1717371056067,-500.0,0.00031333,4]
[328417469,1717371056076,-500.0,0.00031333,4]
[328417470,1717371056085,-1024.11180216,0.00031333,4]
[328417471,1717371056094,-500.0,0.00031333,4]
[328417472,1717371056105,-500.0,0.00031333,4]
[328417473,1717371056114,-565.05,0.00031333,4]
[328417474,1717371056124,-583.0,0.00031333,4]
[328417475,1717371056133,-500.0,0.00031333,4]
[328417476,1717371056144,-1084.19,0.00031333,4]
[328417477,1717371056153,-500.0,0.00031333,4]
[328417478,1717371056162,-500.0,0.00031333,4]
[328417479,1717371056171,-500.0,0.00031333,4]
[328417480,1717371056181,-500.0,0.00031333,4]
[328417481,1717371056190,-500.0,0.00031333,4]
[328417482,1717371056199,-500.0,0.00031333,4]
[328417483,1717371056208,-186.94525921,0.00031333,4]
[328417484,1717371056217,-500.0,0.00031333,2]
[328417485,1717371056229,-500.0,0.00031333,4]
[328417486,1717371056238,-500.0,0.00031333,4]
[328417487,1717371056248,-531.79433189,0.00031333,4]
[328417488,1717371056258,-528.14081732,0.00031333,4]
[328417489,1717371056267,-516.81408043,0.00031333,4]
[328417490,1717371056276,-500.0,0.00031333,4]
[328417491,1717371056286,-525.69318333,0.00031333,4]
[328417492,1717371056295,-500.0,0.00031333,4]
[328417493,1717371056306,-538.21259026,0.00031333,4]
[328417494,1717371056318,-151.0,0.00031333,7]
[328417495,1717371056327,-151.0,0.00031333,7]
[328417496,1717371056337,-559.85,0.00031333,4]
[328417497,1717371056346,-519.16543644,0.00031333,4]
[328417498,1717371056356,-512.01025784,0.00031333,4]
[328417499,1717371056367,-686.33,0.00031333,4]
[328417500,1717371056377,-503.78457608,0.00031333,4]
[328417501,1717371056388,-500.0,0.00031333,4]
[328417502,1717371056397,-537.70508602,0.00031333,4]
[328417503,1717371056406,-500.0,0.00031333,4]
[328417504,1717371056416,-509.45251543,0.00031333,4]
[328417505,1717371056427,-500.0,0.00031333,4]
[328417506,1717371056437,-500.0,0.00031333,4]
[328417507,1717371056448,-457.31394729,0.00031333,4]
[328417508,1717371056459,-500.0,0.00031333,4]
[328417509,1717371056468,-518.64521505,0.00031333,4]
[328417510,1717371056478,-500.0,0.00031333,4]
[328417511,1717371056489,-620.92710278,0.00031333,4]
[328417512,1717371056499,-500.0,0.00031333,4]
[328417513,1717371056508,-500.0,0.00031333,4]
[328417514,1717371056517,-500.0,0.00031333,4]
[328417515,1717371056528,-189.45758309,0.00031333,4]
[328417516,1717371056537,-500.0,0.00031333,4]
[328417517,1717371056546,-506.82624012,0.00031333,4]
[328417518,1717371056555,-594.62,0.00031333,4]
[328417519,1717371056565,-528.5,0.00031333,4]
[328417520,1717371056574,-501.97166203,0.00031333,4]
[328417521,1717371056583,-500.0,0.00031333,4]
[328417522,1717371056597,-500.0,0.00031333,4]
[328417523,1717371056606,-500.0,0.00031333,4]
[328417524,1717371056615,-500.0,0.00031333,4]
[328417525,1717371056624,-500.0,0.00031333,4]
[328417526,1717371056634,-500.0,0.00031333,4]
[328417527,1717371056644,-500.0,0.00031333,4]
[328417528,1717371056654,-500.0,0.00031333,4]
[328417529,1717371056665,-500.0,0.00031333,4]
[328417530,1717371056677,-181.15246151,0.00031333,4]
[328417531,1717371056687,-500.0,0.00031333,4]
[328417532,1717371056696,-500.0,0.00031333,4]
[328417533,1717371056708,-726.33,0.00031333,4]
[328417534,1717371056717,-500.0,0.00031333,4]
[328417535,1717371056726,-515.93374401,0.00031333,4]
[328417536,1717371056737,-500.0,0.00031333,4]
[328417537,1717371056748,-673.43,0.00031333,4]
[328417538,1717371056759,-521.73999374,0.00031333,4]
[328417539,1717371056769,-188.32378,0.00031333,7]
[328417540,1717371056779,-500.0,0.00031333,4]
[328417541,1717371056788,-188.32378,0.00031333,7]
[328417542,1717371056797,-500.0,0.00031333,4]
[328417543,1717371056806,-500.0,0.00031333,4]
[328417544,1717371056817,-188.32378,0.00031333,7]
[328417545,1717371056826,-188.32378,0.00031333,7]
[328417546,1717371056835,-500.0,0.00031333,4]
[328417547,1717371056844,-510.44153344,0.00031333,4]
[328417548,1717371056853,-500.0,0.00031333,4]
[328417549,1717371056862,-500.0,0.00031333,4]
[328417550,1717371056872,-634.16,0.00031333,4]
[328417551,1717371056881,-500.0,0.00031333,4]
[328417552,1717371056891,-500.0,0.00031333,4]
[328417553,1717371056900,-610.74,0.00031333,4]
[328417554,1717371056909,-500.0,0.00031333,4]
[328417555,1717371056918,-500.0,0.00031333,2]
[328417556,1717371056928,-151.0,0.00031333,7]
[328417557,1717371056936,-272.01772,0.00031333,7]
[328417558,1717371056947,-500.0,0.00031333,4]
[328417559,1717371056958,-519.70134844,0.00031333,4]
[328417560,1717371056968,-500.0,0.00031333,4]
[328417561,1717371056977,-500.0,0.00031333,4]
[328417562,1717371056986,-528.17513474,0.00031333,4]
[328417563,1717371056997,-508.75203821,0.00031333,4]
[328417564,1717371057006,-715.05,0.00031333,4]
[328417565,1717371057016,-500.0,0.00031333,4]
[328417566,1717371057025,-500.0,0.00031333,4]
[328417567,1717371057035,-500.0,0.00031333,4]
[328417568,1717371057045,-500.0,0.00031333,4]
[328417569,1717371057055,-500.0,0.00031333,4]
[328417570,1717371057063,-2000.0,0.00031333,2]
[328417571,1717371057073,-648.14,0.00031333,4]
[328417572,1717371057082,-500.0,0.00031333,2]
[328417573,1717371057091,-500.0,0.00031333,4]
[328417574,1717371057100,-500.0,0.00031333,4]
[328417575,1717371057109,-508.0728642,0.00031333,4]
[328417576,1717371057119,-500.0,0.00031333,4]
[328417577,1717371057130,-678.37,0.00031333,4]
[328417578,1717371057139,-500.0,0.00031333,4]
[328417579,1717371057149,-500.0,0.00031333,4]
[328417580,1717371057159,-507.87394134,0.00031333,4]
[328417581,1717371057279,-580.49,0.00031333,4]
[328417582,1717371057288,-500.0,0.00031333,4]
[328417583,1717371057298,-796.98,0.00031333,4]
[328417584,1717371057308,-616.98,0.00031333,4]
[328417585,1717371057317,-500.0,0.00031333,4]
[328417586,1717371057326,-500.0,0.00031333,4]
[328417587,1717371057336,-500.0,0.00031333,4]
[328417588,1717371057347,-562.17,0.00031333,4]
[328417589,1717371057356,-500.0,0.00031333,4]
[328417590,1717371057365,-641.58,0.00031333,4]
[328417591,1717371057374,-500.0,0.00031333,4]
[328417592,1717371057383,-500.0,0.00031333,4]
[328417593,1717371057393,-500.0,0.00031333,4]
[328417594,1717371057402,-804.64,0.00031333,2]
[328417595,1717371057411,-931.07,0.00031333,4]
[328417596,1717371057420,-500.0,0.00031333,4]
[328417597,1717371057430,-800.9,0.00031333,4]
[328417598,1717371057439,-1483.14,0.00031333,4]
[328417599,1717371057448,-966.28,0.00031333,4]
[328417600,1717371057457,-500.0,0.00031333,4]
[328417601,1717371057466,-500.0,0.00031333,4]
[328417602,1717371057475,-513.59698623,0.00031333,4]
[328417603,1717371057485,-500.0,0.00031333,4]
[328417604,1717371057495,-501.85324282,0.00031333,4]
[328417605,1717371057503,-500.0,0.00031333,4]
[328417606,1717371057512,-500.0,0.00031333,4]
[328417607,1717371057521,-500.0,0.00031333,4]
[328417608,1717371057530,-528.34097257,0.00031333,4]
[328417609,1717371057539,-624.28425178,0.00031333,4]
[328417610,1717371057548,-500.0,0.00031333,4]
[328417611,1717371057557,-500.0,0.00031333,4]
[328417612,1717371057566,-500.0,0.00031333,4]
[328417613,1717371057575,-334.800936,0.00031333,7]
[328417614,1717371057585,-500.0,0.00031333,4]
[328417615,1717371057597,-334.800936,0.00031333,7]
[328417616,1717371057607,-500.0,0.00031333,4]
[328417617,1717371057615,-334.800936,0.00031333,7]
[328417618,1717371057625,-334.800936,0.00031333,7]
[328417619,1717371057635,-500.0,0.00031333,4]
[328417620,1717371057645,-1014.25,0.00031333,4]
[328417621,1717371057654,-398.90705088,0.00031333,4]
[328417622,1717371057664,-177.33584199,0.00031333,4]
[328417623,1717371057673,-500.0,0.00031333,4]
[328417624,1717371057683,-500.0,0.00031333,4]
[328417625,1717371057692,-500.0,0.00031333,4]
[328417626,1717371057702,-1282.94,0.00031333,4]
[328417627,1717371057711,-500.0,0.00031333,4]
[328417628,1717371057720,-500.0,0.00031333,2]
[328417629,1717371057729,-183.13083859,0.00031333,4]
[328417630,1717371057738,-500.0,0.00031333,4]
[328417631,1717371057748,-151.0,0.00031333,7]
[328417632,1717371057758,-500.0,0.00031333,4]
[328417633,1717371057767,-816.22,0.00031333,4]
[328417634,1717371057776,-223.352464,0.00031333,7]
[328417635,1717371057786,-223.352464,0.00031333,7]
[328417636,1717371057795,-1358.74,0.00031333,4]
[328417637,1717371057804,-223.352464,0.00031333,7]
[328417638,1717371057813,-223.352464,0.00031333,7]
[328417639,1717371057823,-500.0,0.00031333,4]
[328417640,1717371057833,-526.02326566,0.00031333,4]
[328417641,1717371057843,-673.28,0.00031333,4]
[328417642,1717371057852,-500.0,0.00031333,4]
[328417643,1717371057862,-500.0,0.00031333,4]
[328417644,1717371057871,-151.0,0.00031333,7]
[328417645,1717371057880,-151.0,0.00031333,7]
[328417646,1717371057889,-704.95,0.00031333,4]
[328417647,1717371057898,-500.0,0.00031333,4]
[328417648,1717371057908,-500.0,0.00031333,4]
[328417649,1717371057917,-500.0,0.00031333,4]
[328417650,1717371057927,-500.0,0.00031333,4]
[328417651,1717371057937,-500.0,0.00031333,4]
[328417652,1717371057947,-2030.46,0.00031333,4]
[328417653,1717371057956,-500.0,0.00031333,4]
[328417654,1717371057965,-507.875795,0.00031333,7]
[328417655,1717371057974,-507.875795,0.00031333,7]
[328417656,1717371057983,-500.0,0.00031333,4]
[328417657,1717371057992,-507.875795,0.00031333,7]
[328417658,1717371058001,-507.875795,0.00031333,7]
[328417659,1717371058011,-500.0,0.00031333,4]
[328417660,1717371058020,-500.0,0.00031333,4]
[328417661,1717371058029,-500.0,0.00031333,4]
[328417662,1717371058038,-500.0,0.00031333,4]
[328417663,1717371058048,-514.99764248,0.00031333,4]
[328417664,1717371058057,-506.34199506,0.00031333,4]
[328417665,1717371058066,-500.0,0.00031333,4]
[328417666,1717371058076,-500.0,0.00031333,4]
[328417667,1717371058085,-500.0,0.00031333,4]
[328417668,1717371058094,-230.35408248,0.00031333,4]
[328417669,1717371058103,-518.04,0.00031333,4]
[328417670,1717371058114,-500.0,0.00031333,4]
[328417671,1717371058123,-500.0,0.00031333,4]
[328417672,1717371058132,-505.43779999,0.00031333,4]
[328417673,1717371058141,-500.0,0.00031333,4]
[328417674,1717371058151,-151.0,0.00031333,7]
[328417675,1717371058160,-151.0,0.00031333,7]
[328417676,1717371058170,-369.754307,0.00031333,7]
[328417677,1717371058179,-369.754307,0.00031333,7]
[328417678,1717371058188,-500.0,0.00031333,4]
[328417679,1717371058198,-500.0,0.00031333,4]
[328417680,1717371058207,-369.754307,0.00031333,7]
[328417681,1717371058216,-369.754307,0.00031333,7]
[328417682,1717371058225,-151.0,0.00031333,7]
[328417683,1717371058235,-500.0,0.00031333,4]
[328417684,1717371058244,-500.0,0.00031333,4]
[328417685,1717371058254,-500.0,0.00031333,4]
[328417686,1717371058263,-500.0,0.00031333,4]
[328417687,1717371058274,-151.0,0.00031333,7]
[328417688,1717371058285,-151.0,0.00031333,7]
[328417689,1717371058294,-500.0,0.00031333,4]
[328417690,1717371058303,-500.0,0.00031333,4]
[328417691,1717371058312,-500.0,0.00031333,4]
[328417692,1717371058321,-500.0,0.00031333,4]
[328417693,1717371058331,-500.0,0.00031333,4]
[328417694,1717371058340,-520.11431415,0.00031333,4]
[328417695,1717371058349,-533.77493964,0.00031333,4]
[328417696,1717371058359,-500.0,0.00031333,4]
[328417697,1717371058368,-673.88,0.00031333,4]
[328417698,1717371058377,-228.88621143,0.00031333,4]
[328417699,1717371058387,-500.0,0.00031333,4]
[328417700,1717371058396,-500.0,0.00031333,4]
[328417701,1717371058405,-1046.32,0.00031333,4]
[328417702,1717371058415,-151.0,0.00031333,7]
[328417703,1717371058424,-500.0,0.00031333,4]
[328417704,1717371058434,-500.0,0.00031333,4]
[328417705,1717371058443,-500.0,0.00031333,4]
[328417706,1717371058452,-265.840048,0.00031333,7]
[328417707,1717371058461,-500.0,0.00031333,4]
[328417708,1717371058470,-1044.317613,0.00031333,7]
[328417709,1717371058480,-1044.317613,0.00031333,7]
[328417710,1717371058489,-500.0,0.00031333,4]
[328417711,1717371058498,-1211.44,0.00031333,4]